bitfinex/quotes_SOLUSD_20251024
["timestamp","ask_amount","ask_price","bid_price","bid_amount"]
[1761347110967,102.2,193.79,193.73,22.97234605]
[1761347111169,35.62,193.78,193.75,1.63784869]
[1761347111371,35.62,193.78,193.76,0.67]
[1761347111668,35.62,193.78,193.76,16.17107215]
[1761347112252,35.62,193.78,193.76,21.33190151]
[1761347112453,35.62,193.78,193.77,0.67]
[1761347112862,35.62,193.78,193.77,15.50107215]
[1761347113783,35.62,193.78,193.77,16.17107215]
[1761347113965,102.2,193.83,193.77,17.80892084]
[1761347114158,0.7,193.85,193.79,1.63784869]
[1761347114354,37.95784869,193.84,193.8,5.82995872]
[1761347114568,35.62,193.83,193.8,5.15995872]
[1761347114861,37.95784869,193.83,193.8,0.67]
[1761347115073,37.95784869,193.83,193.79,5.83018787]
[1761347115882,0.7,193.82,193.79,5.83018787]
[1761347118084,1.63784869,193.81,193.77,5.83072126]
[1761347118272,35.62,193.8,193.77,5.83072126]
[1761347118478,36.32,193.8,193.77,5.83072126]
[1761347118776,35.62,193.8,193.77,5.83072126]
[1761347119985,35.62,193.8,193.77,5.16072126]
[1761347120286,0.71,193.79,193.75,0.69]
[1761347120489,0.71,193.79,193.76,0.69]
[1761347120675,35.62,193.78,193.76,0.69]
[1761347121360,35.62,193.78,193.76,5.85097429]
[1761347124997,36.33,193.78,193.76,5.16097429]
[1761347126080,35.62,193.78,193.76,5.85097429]
[1761347126993,35.62,193.78,193.75,5.16129032]
[1761347127290,36.33,193.78,193.75,5.85129032]
[1761347128794,0.71,193.77,193.73,5.85182315]
[1761347128972,0.71,193.77,193.73,7.48967184]
[1761347129292,0.71,193.77,193.74,0.69]
[1761347130310,0.71,193.77,193.75,5.16129032]
[1761347130590,1.63784869,193.79,193.75,5.16129032]
[1761347130795,36.33,193.78,193.75,5.16129032]
[1761347131166,36.33,193.78,193.75,5.85129032]
[1761347133393,1.63784869,193.79,193.75,5.16129032]
[1761347133696,35.62,193.78,193.76,0.69]
[1761347133895,35.62,193.77,193.76,2.32784869]
[1761347134498,35.62,193.77,193.76,7.48887263]
[1761347135901,35.62,193.77,193.76,5.16102394]
[1761347136801,35.62,193.77,193.75,5.16129032]
[1761347137100,35.62,193.77,193.75,7.48913901]
[1761347137278,35.62,193.77,193.75,5.85129032]
[1761347140203,35.62,193.77,193.75,21.35156157]
[1761347140711,35.62,193.77,193.75,5.16129032]
[1761347141401,2.34784869,193.76,193.72,0.1]
[1761347141586,2.34784869,193.76,193.72,15.60267421]
[1761347141781,0.71,193.75,193.72,15.60267421]
[1761347142006,35.62,193.74,193.72,15.60267421]
[1761347142405,35.62,193.74,193.73,5.16166529]
[1761347144507,35.62,193.74,193.73,5.85166529]
[1761347147104,5.15995906,193.8,193.73,5.85166529]
[1761347147305,0.71,193.78,193.74,0.69]
[1761347147505,0.71,193.78,193.74,17.82811994]
[1761347147904,0.71,193.78,193.74,2.32784869]
[1761347148091,0.71,193.78,193.75,16.19027125]
[1761347148505,1.63784869,193.8,193.75,16.19027125]
[1761347148688,36.33,193.79,193.76,0.69]
[1761347149095,0.71,193.78,193.73,18.75622317]
[1761347149309,0.71,193.78,193.75,15.50027125]
[1761347149510,0.71,193.78,193.74,0.69]
[1761347149704,0.71,193.78,193.74,16.19187314]
[1761347151109,0.71,193.78,193.75,5.16129032]
[1761347153594,35.62,193.77,193.76,0.67]
[1761347154409,38.38027125,193.83,193.76,2.30784869]
[1761347154597,36.28,193.82,193.77,0.67]
[1761347154912,37.91784869,193.82,193.77,0.67]
[1761347155105,2.29784869,193.81,193.77,0.67]
[1761347155510,0.66,193.8,193.77,5.83051994]
[1761347155915,0.66,193.8,193.77,21.32918963]
[1761347157014,0.66,193.81,193.77,21.32918963]
[1761347159419,0.66,193.81,193.77,20.65918963]
[1761347159624,0.66,193.81,193.78,5.86045063]
[1761347161722,35.62,193.8,193.79,0.7]
[1761347162029,35.62,193.8,193.78,5.86045063]
[1761347162723,0.67,193.84,193.79,3.25795153]
[1761347162928,35.62,193.82,193.79,18.75502]
[1761347163116,35.62,193.82,193.8,0.7]
[1761347163319,35.62,193.82,193.8,3.25795153]
[1761347163838,0.67,193.84,193.81,0.7]
[1761347164139,35.62,193.83,193.81,0.7]
[1761347165129,35.62,193.83,193.81,5.85963985]
[1761347168933,2.55795153,193.86,193.81,5.15963985]
[1761347169233,36.29,193.85,193.82,0.7]
[1761347169536,35.62,193.84,193.82,0.7]
[1761347170233,35.62,193.84,193.83,5.15916008]
[1761347170820,104.75795153,193.88,193.83,5.15916008]
[1761347171135,36.29,193.87,193.83,5.85916008]
[1761347171340,35.62,193.86,193.83,5.85916008]
[1761347171516,36.29,193.86,193.83,5.85916008]
[1761347171834,35.62,193.86,193.83,5.85916008]
[1761347172023,35.62,193.86,193.84,0.7]
[1761347172424,35.62,193.86,193.83,5.15916008]
[1761347172624,35.62,193.86,193.83,5.85916008]
[1761347173216,2.55795153,193.84,193.81,12.8995856]
[1761347173411,2.55795153,193.82,193.73,5.86182315]
[1761347173632,2.55795153,193.77,193.73,0.7]
[1761347173837,35.64,193.76,193.73,0.7]
[1761347175220,35.64,193.76,193.74,5.16155672]
[1761347175626,35.64,193.76,193.74,5.86155672]
[1761347177030,35.64,193.76,193.75,3.25795153]
[1761347179136,35.64,193.76,193.75,8.41924185]
[1761347180643,0.67,193.8,193.75,21.32246765]
[1761347180848,35.64,193.79,193.77,2.55795153]
[1761347181066,35.64,193.78,193.77,2.55795153]
[1761347181760,35.64,193.79,193.77,3.27795153]
[1761347181951,35.64,193.79,193.78,3.27795153]
[1761347183764,35.64,193.79,193.78,8.4384428]
[1761347184853,0.68,193.83,193.78,21.33967099]
[1761347185054,35.64,193.82,193.79,0.72]
[1761347185768,0.68,193.83,193.79,3.27795153]
[1761347185969,35.64,193.82,193.8,0.72]
[1761347186151,35.64,193.82,193.8,3.27795153]
[1761347186770,0.68,193.83,193.81,5.15969248]
[1761347186946,0.68,193.85,193.82,2.55795153]
[1761347187154,35.64,193.84,193.81,8.43764401]
[1761347187570,36.32,193.84,193.81,8.43764401]
[1761347191777,36.32,193.84,193.81,5.87969248]
[1761347195383,36.32,193.84,193.81,18.77892368]
[1761347195760,36.32,193.84,193.81,21.33687521]
[1761347196386,36.32,193.84,193.81,18.77892368]
[1761347196571,3.23795153,193.83,193.81,5.15969248]
[1761347196976,0.68,193.82,193.81,5.15969248]
[1761347198174,0.68,193.82,193.79,5.16022498]
[1761347198984,0.68,193.82,193.79,18.06078744]
[1761347199485,0.68,193.82,193.79,18.78078744]
[1761347200681,35.64,193.81,193.79,18.78078744]
[1761347200863,35.64,193.81,193.79,18.06078744]
[1761347201685,0.68,193.8,193.79,5.16022498]
[1761347202180,0.68,193.8,193.78,5.16046773]
[1761347202372,3.23795153,193.8,193.78,5.16046773]
[1761347202580,2.55795153,193.79,193.76,5.16076107]
[1761347202875,3.23795153,193.79,193.76,5.16076107]
[1761347203187,38.19795153,193.81,193.76,5.16076107]
[1761347203375,0.68,193.79,193.76,5.16076107]
[1761347207894,0.68,193.79,193.76,5.88076107]
[1761347208691,0.68,193.79,193.76,5.16076107]
[1761347210570,0.68,193.79,193.75,18.77440332]
[1761347211386,0.68,193.79,193.75,20.62235485]
[1761347211592,0.68,193.79,193.77,5.16075759]
[1761347211780,0.68,193.79,193.74,2.55795153]
[1761347211781,3.23795153,193.79,193.74,2.55795153]
[1761347211987,3.23795153,193.79,193.73,23.22004593]
[1761347212190,0.71,193.78,193.74,2.55795153]
[1761347212493,35.64,193.77,193.74,3.26795153]
[1761347213003,35.64,193.77,193.75,5.16129032]
[1761347214788,36.35,193.77,193.75,5.16129032]
[1761347216100,36.35,193.77,193.74,5.16155672]
[1761347217798,22.88,193.82,193.74,20.62340006]
[1761347218097,22.88,193.82,193.75,3.27795153]
[1761347218098,0.69,193.79,193.75,3.27795153]
[1761347218278,0.69,193.79,193.75,18.77582057]
[1761347218711,0.69,193.79,193.75,17.8551882]
[1761347219407,0.69,193.79,193.76,5.16102394]
[1761347221407,0.69,193.79,193.76,5.88102394]
[1761347222002,0.69,193.79,193.76,5.16102394]
[1761347223091,0.69,193.79,193.76,7.5183431]
[1761347224410,0.69,193.79,193.76,5.88102394]
[1761347224915,0.69,193.79,193.76,5.16102394]
[1761347226512,0.69,193.79,193.76,5.88102394]
[1761347230409,0.69,193.79,193.76,5.16102394]
[1761347232425,0.69,193.79,193.75,5.16129032]
[1761347232629,0.69,193.79,193.76,0.72]
[1761347233725,0.69,193.79,193.75,7.51860948]
[1761347234225,0.69,193.79,193.77,5.16075759]
[1761347237131,0.69,193.8,193.77,5.88075759]
[1761347237930,0.69,193.8,193.77,5.16075759]
[1761347238232,0.69,193.8,193.76,5.16102394]
[1761347238424,0.69,193.8,193.76,5.88102394]
[1761347239533,0.69,193.8,193.78,5.16049127]
[1761347239718,0.68,193.82,193.78,5.16049127]
[1761347239913,35.64,193.81,193.78,5.16049127]
[1761347240126,36.32,193.81,193.78,5.86049127]
[1761347240631,36.32,193.81,193.79,0.7]
[1761347241033,36.32,193.81,193.78,5.86049127]
[1761347244830,0.68,193.8,193.78,5.16049127]
[1761347245131,35.64,193.79,193.78,5.16049127]
[1761347247337,36.32,193.79,193.78,5.16049127]
[1761347248334,36.32,193.79,193.76,18.06357011]
[1761347248537,36.32,193.79,193.76,18.76357011]
[1761347252314,2.31731916,193.78,193.73,18.06638103]
[1761347252516,1.63731916,193.77,193.73,5.16182315]
[1761347252733,36.3,193.76,193.73,5.16182315]
[1761347252929,0.68,193.75,193.73,5.16182315]
[1761347255031,36.3,193.76,193.73,5.16182315]
[1761347255340,0.68,193.75,193.73,5.16182315]
[1761347255546,36.32,193.75,193.73,5.16182315]
[1761347256223,35.64,193.74,193.73,5.16182315]
[1761347259743,0.68,193.75,193.73,5.16182315]
[1761347259947,2.31731916,193.78,193.75,5.16129032]
[1761347260153,35.64,193.77,193.75,5.16129032]
[1761347260326,36.32,193.77,193.75,5.16129032]
[1761347260521,0.68,193.76,193.75,5.16129032]
[1761347260925,0.68,193.76,193.74,5.16155672]
[1761347261122,1.63731916,193.75,193.72,5.26204757]
[1761347261322,0.68,193.76,193.72,5.26204757]
[1761347261548,1.63731916,193.74,193.72,5.26204757]
[1761347261846,36.32,193.73,193.72,5.26204757]
[1761347266648,37.95731916,193.73,193.72,0.1]
[1761347270953,5.16071621,193.78,193.72,5.26208961]
[1761347271253,0.68,193.74,193.72,5.26208961]
[1761347271458,35.64,193.73,193.72,5.26208961]
[1761347272460,36.32,193.73,193.72,5.26208961]
[1761347272843,0.68,193.74,193.72,5.26208961]
[1761347273048,35.64,193.73,193.72,5.26208961]
[1761347273743,36.32,193.73,193.72,5.26208961]
[1761347274356,0.68,193.73,193.72,5.26208961]
[1761347274549,36.32,193.73,193.72,5.26208961]
[1761347276141,0.68,193.73,193.72,5.26208961]
[1761347276342,36.32,193.73,193.72,5.26208961]
[1761347285574,35.64,193.73,193.72,5.26208961]
[1761347285777,36.35,193.73,193.72,5.26208961]
[1761347287575,35.64,193.73,193.72,5.26208961]
[1761347287882,10.42263916,193.78,193.72,5.26208961]
[1761347288072,0.71,193.76,193.73,0.65]
[1761347288373,0.71,193.76,193.73,6.76208961]
[1761347290579,0.71,193.76,193.74,5.16155672]
[1761347290979,35.64,193.75,193.74,5.16155672]
[1761347292593,30.98,193.85,193.74,21.2753018]
[1761347292756,35.64,193.8,193.77,2.55985327]
[1761347292957,35.68,193.79,193.78,2.55985327]
[1761347293177,35.68,193.8,193.78,2.55985327]
[1761347293376,35.68,193.8,193.79,0.65]
[1761347293777,35.68,193.8,193.79,5.81022498]
[1761347294074,35.68,193.8,193.79,21.30809402]
[1761347296277,35.68,193.8,193.79,23.86794729]
[1761347299587,35.68,193.8,193.79,21.30809402]
[1761347300684,38.93985327,193.8,193.72,0.1]
[1761347300883,2.55985327,193.76,193.72,0.1]
[1761347301072,35.72,193.75,193.73,2.06702322]
[1761347301272,36.42,193.75,193.73,2.06702322]
[1761347301459,36.42,193.75,193.72,0.1]
[1761347301460,38.27985327,193.75,193.72,0.1]
[1761347301662,0.7,193.74,193.72,7.32907051]
[1761347303069,38.27985327,193.75,193.72,8.02907051]
[1761347303268,35.72,193.75,193.72,5.96204729]
[1761347303681,35.72,193.75,193.72,21.4647215]
[1761347304391,0.7,193.74,193.72,20.7647215]
[1761347305982,35.72,193.75,193.72,20.7647215]
[1761347306187,36.42,193.75,193.72,20.7647215]
[1761347308594,36.42,193.75,193.72,21.4647215]
[1761347314102,36.42,193.75,193.72,24.02457477]
[1761347314987,36.42,193.75,193.72,21.4647215]
[1761347315181,35.72,193.74,193.73,5.86182315]
[1761347315394,35.72,193.74,193.73,5.16182315]
[1761347315595,36.42,193.74,193.73,5.16182315]
[1761347317194,38.97985327,193.74,193.72,0.1]
[1761347317410,0.7,193.73,193.72,0.1]
[1761347317704,3.25985327,193.73,193.72,0.1]
[1761347319973,8.42167642,193.73,193.72,0.1]
[1761347320494,10.48923385,193.73,193.72,0.1]
[1761347326416,8.42167642,193.73,193.72,0.1]
[1761347328808,44.14167642,193.73,193.72,0.1]
[1761347331698,67.02167642,193.73,193.72,0.1]
[1761347332005,69.08944762,193.73,193.72,0.1]
[1761347334587,57.08592283,193.73,193.72,0.1]
[1761347340701,56.1656139,193.73,193.72,0.1]
[1761347341593,43.3256139,193.73,193.72,0.1]
[1761347341821,56.1656139,193.73,193.72,0.1]
[1761347342689,20.4456139,193.73,193.72,0.1]
[1761347342892,56.1656139,193.73,193.72,0.1]
[1761347343511,45.28913869,193.73,193.72,0.1]
[1761347345434,8.86913869,193.73,193.72,0.1]
[1761347345598,44.58913869,193.73,193.72,0.1]
[1761347345799,65.40136749,193.73,193.72,0.1]
[1761347346027,42.52136749,193.73,193.72,0.1]
[1761347346338,65.40136749,193.73,193.72,0.1]
[1761347347105,60.23954434,193.73,193.72,0.1]
[1761347347308,65.40136749,193.73,193.72,0.1]
[1761347349602,66.12136749,193.73,193.72,0.1]
[1761347351834,30.40136749,193.73,193.72,0.1]
[1761347352129,66.12136749,193.73,193.72,0.1]
[1761347355437,76.9978427,193.73,193.72,0.1]
[1761347355727,54.1178427,193.73,193.72,0.1]
[1761347365935,18.3978427,193.73,193.72,0.1]
[1761347366134,54.1178427,193.73,193.72,0.1]
[1761347369522,55.75738704,193.73,193.7,0.1]
[1761347369721,33.75647521,193.69,193.68,0.1]
[1761347369939,71.11601955,193.69,193.68,0.1]
[1761347370242,71.79601955,193.69,193.68,0.1]
[1761347371134,76.9589087,193.69,193.68,0.1]
[1761347372546,39.59936436,193.69,193.68,0.1]
[1761347372850,76.2789087,193.69,193.68,0.1]
[1761347373528,53.3989087,193.69,193.68,0.1]
[1761347373848,76.2789087,193.69,193.68,0.1]
[1761347375832,53.3989087,193.69,193.68,0.1]
[1761347376034,54.0789087,193.69,193.68,0.1]
[1761347377438,54.0789087,193.69,193.67,0.1]
[1761347377637,2.31954434,193.68,193.67,0.1]
[1761347378552,7.48270006,193.68,193.67,0.1]
[1761347380746,12.51601955,193.67,193.66,0.1]
[1761347381040,48.93601955,193.67,193.66,0.1]
[1761347381850,54.09944186,193.67,193.66,0.1]
[1761347385343,54.09944186,193.67,193.65,0.1]
[1761347385539,7.48323327,193.66,193.65,0.1]
[1761347389470,18.35970848,193.66,193.65,0.1]
[1761347389768,18.35970848,193.66,193.64,0.1]
[1761347389936,140.23954434,193.65,193.64,0.1]
[1761347390762,145.40349992,193.65,193.64,0.1]
[1761347391462,113.73647521,193.64,193.62,0.1]
[1761347391655,37.37954434,193.63,193.62,0.1]
[1761347391857,38.03954434,193.63,193.62,0.1]
[1761347392878,43.20403331,193.63,193.62,0.1]
[1761347393539,42.54403331,193.63,193.62,0.1]
[1761347394057,43.20403331,193.63,193.62,0.1]
[1761347395443,58.46994388,193.63,193.62,0.1]
[1761347400768,59.39498092,193.63,193.62,0.1]
[1761347402971,56.83039954,193.63,193.62,0.1]
[1761347403269,59.39498092,193.63,193.62,0.1]
[1761347404970,72.83603751,193.63,193.61,0.1]
[1761347405169,3.28458138,193.62,193.61,0.1]
[1761347405345,3.28458138,193.62,193.6,0.1]
[1761347405346,16.72563797,193.62,193.6,0.1]
[1761347405667,22.88,193.57,193.54,0.69]
[1761347405865,2.56458138,193.55,193.54,0.69]
[1761347406971,7.73120499,193.55,193.54,0.69]
[1761347408458,21.36776401,193.55,193.51,0.69]
[1761347408664,2.56458138,193.52,193.51,0.69]
[1761347408876,38.30458138,193.52,193.51,0.69]
[1761347410176,43.47200593,193.52,193.51,0.69]
[1761347413872,40.90742455,193.52,193.51,0.69]
[1761347414069,43.47200593,193.52,193.51,0.69]
[1761347414277,7.73200593,193.52,193.51,0.69]
[1761347414474,43.47200593,193.52,193.51,0.69]
[1761347419781,7.73200593,193.52,193.51,0.69]
[1761347419969,43.47200593,193.52,193.51,0.69]
[1761347427690,44.14200593,193.52,193.48,0.71]
[1761347427992,2.56458138,193.49,193.48,0.71]
[1761347428166,38.30458138,193.49,193.48,0.71]
[1761347436890,35.74,193.49,193.48,0.71]
[1761347441398,38.30458138,193.49,193.48,0.71]
[1761347441706,38.30458138,193.49,193.46,0.81]
[1761347441904,2.56458138,193.47,193.46,0.81]
[1761347442106,38.28458138,193.47,193.46,0.81]
[1761347442703,38.28458138,193.47,193.46,0.1]
[1761347444807,38.78458138,193.47,193.46,0.1]
[1761347445115,39.45458138,193.47,193.46,0.1]
[1761347445611,44.62334139,193.47,193.46,0.1]
[1761347447619,55.4998166,193.47,193.46,0.1]
[1761347448117,19.7798166,193.47,193.46,0.1]
[1761347448315,55.5198166,193.47,193.46,0.1]
[1761347459424,44.64334139,193.47,193.46,0.1]
[1761347460932,8.23334139,193.47,193.46,0.76]
[1761347461234,43.95334139,193.47,193.46,0.76]
[1761347461413,3.06458138,193.47,193.46,0.76]
[1761347461603,38.78458138,193.47,193.46,0.76]
[1761347462004,43.95334139,193.47,193.46,0.76]
[1761347462730,43.03192636,193.47,193.46,0.76]
[1761347462928,41.38876001,193.47,193.46,0.76]
[1761347463130,43.03192636,193.47,193.46,0.76]
[1761347465906,36.22,193.47,193.46,0.76]
[1761347466332,37.86316635,193.47,193.46,0.76]
[1761347468606,2.14316635,193.47,193.46,0.76]
[1761347468807,37.86316635,193.47,193.46,0.76]
[1761347472634,36.22,193.47,193.46,0.76]
[1761347472820,35.72,193.47,193.46,0.76]
[1761347474131,0.67,193.53,193.46,0.76]
[1761347474332,1.64316635,193.47,193.46,15.62192471]
[1761347474630,37.42316635,193.47,193.46,0.1]
[1761347474833,38.09316635,193.47,193.46,0.1]
[1761347475616,43.26192636,193.47,193.46,0.1]
[1761347478944,42.59192636,193.47,193.46,0.1]
[1761347486137,6.81192636,193.47,193.46,0.1]
[1761347486433,40.92876001,193.47,193.46,0.1]
[1761347486641,42.57192636,193.47,193.46,0.1]
[1761347494455,37.40316635,193.47,193.46,0.1]
[1761347498654,35.76,193.47,193.46,0.1]
[1761347498863,35.74,193.47,193.46,0.76]
[1761347500557,1.64316635,193.48,193.46,0.76]
[1761347500764,35.74,193.47,193.46,0.76]
[1761347502662,37.38316635,193.47,193.46,0.76]
[1761347507863,37.38316635,193.47,193.46,0.1]
[1761347508649,43.24192636,193.47,193.46,0.1]
[1761347516675,6.81192636,193.47,193.46,0.1]
[1761347516879,42.55192636,193.47,193.46,0.1]
[1761347518080,40.90876001,193.47,193.46,0.1]
[1761347518281,42.55192636,193.47,193.46,0.1]
[1761347519257,42.55192636,193.47,193.46,0.75]
[1761347520162,42.55192636,193.47,193.46,0.1]
[1761347522781,43.47615688,193.47,193.46,0.1]
[1761347524492,43.47615688,193.47,193.46,0.75]
[1761347525072,38.30739687,193.47,193.46,0.75]
[1761347526086,38.30739687,193.47,193.46,0.1]
[1761347528580,2.56739687,193.48,193.46,0.75]
[1761347528889,35.72,193.47,193.46,0.75]
[1761347530064,38.28739687,193.47,193.46,0.1]
[1761347530792,38.28739687,193.47,193.46,0.75]
[1761347532895,35.72,193.47,193.46,0.75]
[1761347533195,38.28739687,193.47,193.46,0.75]
[1761347533900,35.72,193.47,193.46,0.75]
[1761347534489,38.28739687,193.47,193.46,0.1]
[1761347535604,38.28739687,193.47,193.46,0.75]
[1761347541507,35.72,193.47,193.46,0.75]
[1761347542987,2.56739687,193.48,193.46,0.75]
[1761347543221,38.28739687,193.47,193.46,0.75]
[1761347543516,35.72,193.47,193.46,0.75]
[1761347549717,2.56739687,193.53,193.46,8.48639336]
[1761347549899,35.72,193.52,193.47,4.5447546]
[1761347550094,35.72,193.52,193.48,3.8747546]
[1761347550294,35.72,193.52,193.49,3.8747546]
[1761347550504,35.72,193.52,193.5,3.8747546]
[1761347550696,22.88,193.57,193.5,3.8747546]
[1761347550697,2.56739687,193.55,193.51,3.8747546]
[1761347550903,35.72,193.54,193.51,0.67]
[1761347551112,35.72,193.54,193.52,0.67]
[1761347552194,35.72,193.53,193.52,0.67]
[1761347553698,0.71,193.57,193.52,5.83732017]
[1761347554001,38.28739687,193.56,193.53,0.67]
[1761347555021,35.72,193.56,193.53,5.83712674]
[1761347555402,35.72,193.56,193.54,0.67]
[1761347555917,2.56739687,193.57,193.54,0.67]
[1761347556133,35.72,193.55,193.54,0.67]
[1761347559907,38.99739687,193.55,193.51,5.83744142]
[1761347560113,3.27739687,193.54,193.51,5.83744142]
[1761347560423,35.72,193.53,193.52,0.67]
[1761347561625,35.72,193.53,193.52,5.83742455]
[1761347565528,38.99739687,193.53,193.47,0.67]
[1761347565705,38.99739687,193.53,193.48,5.16846866]
[1761347565706,0.71,193.52,193.48,5.16846866]
[1761347565903,2.56739687,193.52,193.49,0.67]
[1761347566512,3.27739687,193.53,193.49,0.67]
[1761347566928,35.72,193.52,193.49,0.67]
[1761347567106,35.72,193.51,193.49,0.67]
[1761347567426,35.72,193.51,193.5,5.16795865]
[1761347567610,35.72,193.51,193.5,5.83795865]
[1761347571111,35.72,193.51,193.5,21.35827733]
[1761347573518,35.72,193.51,193.5,5.83795865]
[1761347574408,35.72,193.51,193.5,21.35827733]
[1761347580334,35.72,193.51,193.5,20.68827733]
[1761347580539,35.72,193.51,193.46,33.85647521]
[1761347580540,39.00739687,193.51,193.46,0.1]
[1761347580739,2.56739687,193.47,193.46,0.1]
[1761347581035,38.28739687,193.47,193.46,0.1]
[1761347581230,39.00739687,193.47,193.46,0.1]
[1761347582741,38.08308303,193.47,193.46,0.1]
[1761347590033,38.08308303,193.47,193.46,5.26902718]
[1761347590435,36.44,193.47,193.46,5.26902718]
[1761347592539,36.44,193.47,193.46,0.1]
[1761347593639,0.72,193.49,193.46,0.1]
[1761347593878,35.72,193.48,193.46,0.81]
[1761347594160,35.72,193.48,193.46,0.1]
[1761347594541,36.44,193.48,193.46,0.1]
[1761347596971,19.73558283,193.5,193.46,0.1]
[1761347596972,14.56760899,193.5,193.46,5.269026]
[1761347597153,36.44,193.49,193.46,5.979026]
[1761347597553,14.56760899,193.51,193.47,0.71]
[1761347597856,35.72,193.5,193.47,0.71]
[1761347598666,35.72,193.49,193.48,5.16849286]
[1761347608960,0.72,193.51,193.48,5.16849286]
[1761347609173,35.72,193.49,193.48,5.16849286]
[1761347610364,35.72,193.49,193.47,5.83876001]
[1761347610780,35.72,193.49,193.48,0.67]
[1761347610979,35.72,193.49,193.47,5.83876001]
[1761347617088,35.72,193.48,193.47,5.83876001]
[1761347618981,12.92300179,193.53,193.47,20.40374307]
[1761347619187,35.72,193.52,193.48,0.67]
[1761347619394,36.44,193.52,193.48,0.67]
[1761347620304,35.72,193.52,193.49,5.16822574]
[1761347620599,0.72,193.51,193.49,5.16822574]
[1761347622896,1.64308303,193.53,193.47,18.09066004]
[1761347623099,36.44,193.52,193.49,0.67]
[1761347625403,36.44,193.52,193.49,5.83806318]
[1761347625600,0.72,193.51,193.49,5.16806318]
[1761347628504,35.72,193.52,193.47,18.09066004]
[1761347628694,36.44,193.52,193.49,0.67]
[1761347628890,0.72,193.51,193.47,18.09066004]
[1761347629297,2.36308303,193.51,193.47,18.09066004]
[1761347630012,0.72,193.51,193.47,18.09066004]
[1761347630307,37.36308303,193.52,193.47,18.75066004]
[1761347630308,0.68,193.5,193.47,18.75066004]
[1761347630494,35.72,193.49,193.47,18.75066004]
[1761347641994,0.68,193.5,193.47,18.75066004]
[1761347642189,1.64308303,193.53,193.47,18.75066004]
[1761347642190,35.7,193.49,193.48,5.16849286]
[1761347648303,38.93591536,193.49,193.46,0.1]
[1761347648496,2.56591536,193.47,193.46,0.1]
[1761347648901,3.23591536,193.47,193.46,0.1]
[1761347649311,0.67,193.47,193.46,0.1]
[1761347650222,0.67,193.47,193.46,5.26902718]
[1761347652999,0.67,193.49,193.46,5.26902718]
[1761347653302,35.72,193.48,193.46,5.26902718]
[1761347653617,35.72,193.47,193.46,5.26902718]
[1761347653922,36.39,193.47,193.46,5.26902718]
[1761347660223,36.39,193.47,193.46,0.1]
[1761347663832,44.12467537,193.47,193.46,0.1]
[1761347664205,49.29393775,193.47,193.46,0.1]
[1761347679146,13.57393775,193.47,193.46,0.1]
[1761347679335,49.29393775,193.47,193.46,0.1]
[1761347679948,13.57393775,193.47,193.46,0.1]
[1761347680149,49.29393775,193.47,193.46,0.1]
[1761347702042,7.73517774,193.47,193.46,0.8]
[1761347702345,38.28591536,193.47,193.46,0.1]
[1761347703158,38.96591536,193.47,193.46,0.1]
[1761347704976,38.04317077,193.47,193.46,0.1]
[1761347705465,43.21193078,193.47,193.46,0.1]
[1761347705644,48.48194973,193.47,193.46,0.1]
[1761347706461,43.21193078,193.47,193.46,0.1]
[1761347707258,5.16850474,193.48,193.46,0.1]
[1761347707570,37.36317077,193.47,193.46,0.1]
[1761347707782,38.04317077,193.47,193.46,0.1]